Workbook

Sheet Angaben
A1: Lightline 35
A8: Bitte wählen Sie die Leuchte aus, zu der der Ausschreibungstext gewünscht ist
A10: Leuchtentyp auswählen: | B10: Blackline 35 Einbau Abdeckung schwarz
A12: Länge eingeben: | B12: 2000 | C12: mm
B14: =IF(B10=Tabelle2!A3,(Angaben!B12-35)/280,IF(Angaben!B10=Tabelle2!A6,(Angaben!B12-35)/280,(Angaben!B12-25)/280)) -> 7.017857143 | C14: =ROUNDDOWN(B14,0) -> 7 | D14: =ROUNDUP(B14,0) -> 8
A16: Mögliche Längen: | B16: =IF(B10=Tabelle2!A3,Angaben!C14*280+35,IF(Angaben!B10=Tabelle2!A6,Angaben!C14*280+35,Angaben!C14*280+25)) -> 1995 | C16: mm * | D16: 1
B17: =IF(B10=Tabelle2!A3,Angaben!D14*280+35,IF(Angaben!B10=Tabelle2!A6,Angaben!D14*280+35,Angaben!D14*280+25)) -> 2275 | C17: mm * | D17: 1
B19: *BITTE LÄNGE AUSWÄHLEN
B21: Bitte gewünschten Text öffnen
A23: Bei Fragen oder fehlenden Ausschreibungstexten schreiben Sie uns bitte an: | D23: info@kotzolt.de

Sheet Lightline 35 A opal (hidden)
A6: Ausschreibungstext
A7: Lightline 35 Anbau opal
A9: Anbauleuchte mit LED | D9: =(F9-25)/280*1100 -> -98.21428571 | E9: lm | F9: =IF(A7=Angaben!B10,IF(Angaben!D16=1,Angaben!B16,IF(Angaben!$D$16=2,Angaben!$B$17))) -> FALSE | G9: mm
A10: Leuchtenkörper aus Aluminiumprofil eloxiert,
A11: auch in Weiß, Schwarz oder Titansilber möglich
A12: Lichtaustritt mit Profil-Abdeckung opal Diffus PMMA
A13: Einzelleuchte. Treiber in Leuchtenkörper integriert.
A14: Nach Ökodesign Richtline sind alle Komponenten einzeln austauschbar
A15: LED Module auf separater Trägerarmatur.
A17: Abmessung | C17: =F9 -> FALSE | D17: x 35 x 35 | E17: mm | F17: (L x B x H)
A18: Leuchtmittel | C18: LED-Lumenstrom | E18: =D9 -> -98.21428571 | F18: lm
C19: Leuchten-Lumenstrom | E19: =ROUND(E18*0.74,0) -> -73 | F19: lm
C20: Anschlussleistung ca. | E20: =E18/1100*6.8 -> -0.6071428571 | F20: Watt
C21: Effizienz ca. 120lm/W
C22: Farbwiedergabeindex > 80 (optional > 90)
C23: Lebensdauer L80/B10/60000h
C24: Flickerfrei Pst < 0,5 - SVM < 0,5 und Zhaga konform
A25: Farbtemperatur: | C25: 4000 | D25: K | E25: (optional 3000 K)
A26: Betriebsgerät | C26: DALI dimmbar (optional schaltbar)
A27: Schutzart: | C27: IP 20
A28: Montageart: | C28: Deckenanbau
A30: Fabrikat | C30: Kotzolt
A31: Typ | C31: Lightline 35 A LED | E31: =D9 -> -98.21428571 | F31: lm

Sheet Lightline 35 P opal (hidden)
A6: Ausschreibungstext
A7: Lightline 35 Pendel opal
A9: Pendelleuchte mit LED | D9: =(F9-25)/280*1100 -> -98.21428571 | E9: lm | F9: =IF(A7=Angaben!B10,IF(Angaben!D16=1,Angaben!B16,IF(Angaben!D16=2,Angaben!B17))) -> FALSE | G9: mm
A10: Leuchtenkörper aus Aluminiumprofil eloxiert,
A11: auch in Weiß, Schwarz oder Titansilber möglich
A12: Lichtaustritt mit Profil-Abdeckung opal Diffus PMMA
A13: Einzelleuchte. Treiber in Leuchtenkörper integriert.
A14: inkl. Stahlseile 1,0 Meter
A15: transparente Zuleitung 5x0,75mm² (schaltbar: 3x0,75mm²)
A16: und quadratischer Baldachin
A17: Nach Ökodesign Richtline sind alle Komponenten einzeln austauschbar
A18: LED Module auf separater Trägerarmatur.
A20: Abmessung | C20: =F9 -> FALSE | D20: x 35 x 35 | E20: mm | F20: (L x B x H)
A21: Leuchtmittel | C21: LED-Lumenstrom | E21: =D9 -> -98.21428571 | F21: lm
C22: Leuchten-Lumenstrom | E22: =ROUND(E21*0.74,0) -> -73 | F22: lm
C23: Anschlussleistung ca. | E23: =E21/1100*6.8 -> -0.6071428571 | F23: Watt
C24: Effizienz ca. 120lm/W
C25: Farbwiedergabeindex > 80 (optional > 90)
C26: Lebensdauer L80/B10/60000h
C27: Flickerfrei Pst < 0,5 - SVM < 0,5 und Zhaga konform
A28: Farbtemperatur: | C28: 4000 | D28: K | E28: (optional 3000 K)
A29: Betriebsgerät | C29: DALI dimmbar (optional schaltbar)
A30: Schutzart: | C30: IP 20
A31: Montageart: | C31: Pendelmontage
A33: Fabrikat | C33: Kotzolt
A34: Typ | C34: Lightline 35 P LED | E34: =D9 -> -98.21428571 | F34: lm

Sheet Lightline 35 E opal (hidden)
A6: Ausschreibungstext
A7: Lightline 35 Einbau opal
A9: Einbauleuchte mit LED | D9: =(F9-35)/280*1100 -> -137.5 | E9: lm | F9: =IF(A7=Angaben!B10,IF(Angaben!D16=1,Angaben!B16,IF(Angaben!D16=2,Angaben!B17))) -> FALSE | G9: mm
A10: Leuchtenkörper aus Aluminiumprofil eloxiert,
A11: auch in Weiß, Schwarz oder Titansilber möglich
A12: Lichtaustritt mit Profil-Abdeckung opal Diffus PMMA
A13: Einzelleuchte. Treiber in Leuchtenkörper integriert.
A14: Nach Ökodesign Richtline sind alle Komponenten einzeln austauschbar
A15: LED Module auf separater Trägerarmatur.
A17: Abmessung | C17: =F9 -> FALSE | D17: x 35 x 35 | E17: mm | F17: (L x B x H)
A18: Leuchtmittel | C18: LED-Lumenstrom | E18: =D9 -> -137.5 | F18: lm
C19: Leuchten-Lumenstrom | E19: =ROUND(E18*0.74,0) -> -102 | F19: lm
C20: Anschlussleistung ca. | E20: =E18/1100*6.8 -> -0.85 | F20: Watt
C21: Effizienz ca. 120lm/W
C22: Farbwiedergabeindex > 80 (optional > 90)
C23: Lebensdauer L80/B10/60000h
C24: Flickerfrei Pst < 0,5 - SVM < 0,5 und Zhaga konform
A25: Farbtemperatur: | C25: 4000 | D25: K | E25: (optional 3000 K)
A26: Betriebsgerät | C26: DALI dimmbar (optional schaltbar)
A27: Schutzart: | C27: IP 20
A28: Montageart: | C28: Einbaumontage
A30: Fabrikat | C30: Kotzolt
A31: Typ | C31: Lightline 35 E LED | E31: =D9 -> -137.5 | F31: lm

Sheet Blackline 35 A (hidden)
A6: Ausschreibungstext
A7: Blackline 35 Anbau Abdeckung schwarz
A9: Anbauleuchte mit LED | D9: =(F9-25)/280*1100 -> -98.21428571 | E9: lm | F9: =IF(A7=Angaben!B10,IF(Angaben!D16=1,Angaben!B16,IF(Angaben!D16=2,Angaben!B17))) -> FALSE | G9: mm
A10: Leuchtenkörper aus Aluminiumprofil schwarz gepulvert,
A11: Lichtaustritt mit Profil-Abdeckung schwarz PMMA
A12: Einzelleuchte. Treiber in Leuchtenkörper integriert.
A13: Nach Ökodesign Richtline sind alle Komponenten einzeln austauschbar
A14: LED Module auf separater Trägerarmatur.
A16: Abmessung | C16: =F9 -> FALSE | D16: x 35 x 35 | E16: mm | F16: (L x B x H)
A17: Leuchtmittel | C17: LED-Lumenstrom | E17: =D9 -> -98.21428571 | F17: lm
C18: Leuchten-Lumenstrom | E18: =ROUND(E17*0.26,0) -> -26 | F18: lm
C19: Anschlussleistung ca. | E19: =E17/1100*6.8 -> -0.6071428571 | F19: Watt
C20: Effizienz ca. 42lm/W
C21: Farbwiedergabeindex > 80 (optional > 90)
C22: Lebensdauer L80/B10/60000h
C23: Flickerfrei Pst < 0,5 - SVM < 0,5 und Zhaga konform
A24: Farbtemperatur: | C24: 4000 | D24: K | E24: (optional 3000 K)
A25: Betriebsgerät | C25: DALI dimmbar (optional schaltbar)
A26: Schutzart: | C26: IP 20
A27: Montageart: | C27: Deckenanbau
A29: Fabrikat | C29: Kotzolt
A30: Typ | C30: Blackline 35 A LED | E30: =D9 -> -98.21428571 | F30: lm

Sheet Blackline 35 P (hidden)
A6: Ausschreibungstext
A7: Blackline 35 Pendel Abdeckung schwarz
A9: Pendelleuchte mit LED | D9: =(F9-25)/280*1100 -> -98.21428571 | E9: lm | F9: =IF(A7=Angaben!B10,IF(Angaben!D16=1,Angaben!B16,IF(Angaben!D16=2,Angaben!B17))) -> FALSE | G9: mm
A10: Leuchtenkörper aus Aluminiumprofil schwarz gepulvert,
A11: Lichtaustritt mit Profil-Abdeckung schwarz PMMA
A12: Einzelleuchte. Treiber in Leuchtenkörper integriert.
A13: inkl. Stahlseile 1,0 Meter
A14: transparente Zuleitung 5x0,75mm² (schaltbar: 3x0,75mm²)
A15: und quadratischer Baldachin
A16: Nach Ökodesign Richtline sind alle Komponenten einzeln austauschbar
A17: LED Module auf separater Trägerarmatur.
A19: Abmessung | C19: =F9 -> FALSE | D19: x 35 x 35 | E19: mm | F19: (L x B x H)
A20: Leuchtmittel | C20: LED-Lumenstrom | E20: =D9 -> -98.21428571 | F20: lm
C21: Leuchten-Lumenstrom | E21: =ROUND(E20*0.26,0) -> -26 | F21: lm
C22: Anschlussleistung ca. | E22: =E20/1100*6.8 -> -0.6071428571 | F22: Watt
C23: Effizienz ca. 42lm/W
C24: Farbwiedergabeindex > 80 (optional > 90)
C25: Lebensdauer L80/B10/60000h
C26: Flickerfrei Pst < 0,5 - SVM < 0,5 und Zhaga konform
A27: Farbtemperatur: | C27: 4000 | D27: K | E27: (optional 3000 K)
A28: Betriebsgerät | C28: DALI dimmbar (optional schaltbar)
A29: Schutzart: | C29: IP 20
A30: Montageart: | C30: Pendelmontage
A32: Fabrikat | C32: Kotzolt
A33: Typ | C33: Blackline 35 P LED | E33: =D9 -> -98.21428571 | F33: lm

Sheet Blackline 35 E (hidden)
A6: Ausschreibungstext
A7: Blackline 35 Einbau Abdeckung schwarz
A9: Einbauleuchte mit LED | D9: =(F9-35)/280*1100 -> 7700 | E9: lm | F9: =IF(A7=Angaben!B10,IF(Angaben!D16=1,Angaben!B16,IF(Angaben!D16=2,Angaben!B17))) -> 1995 | G9: mm
A10: Leuchtenkörper aus Aluminiumprofil schwarz gepulvert,
A11: Lichtaustritt mit Profil-Abdeckung schwarz PMMA
A12: Einzelleuchte. Treiber in Leuchtenkörper integriert.
A13: Nach Ökodesign Richtline sind alle Komponenten einzeln austauschbar
A14: LED Module auf separater Trägerarmatur.
A16: Abmessung | C16: =F9 -> 1995 | D16: x 35 x 35 | E16: mm | F16: (L x B x H)
A17: Leuchtmittel | C17: LED-Lumenstrom | E17: =D9 -> 7700 | F17: lm
C18: Leuchten-Lumenstrom | E18: =ROUND(E17*0.26,0) -> 2002 | F18: lm
C19: Anschlussleistung ca. | E19: =E17/1100*6.8 -> 47.6 | F19: Watt
C20: Effizienz ca. 42lm/W
C21: Farbwiedergabeindex > 80 (optional > 90)
C22: Lebensdauer L80/B10/60000h
C23: Flickerfrei Pst < 0,5 - SVM < 0,5 und Zhaga konform
A24: Farbtemperatur: | C24: 4000 | D24: K | E24: (optional 3000 K)
A25: Betriebsgerät | C25: DALI dimmbar (optional schaltbar)
A26: Schutzart: | C26: IP 20
A27: Montageart: | C27: Einbaumontage
A29: Fabrikat | C29: Kotzolt
A30: Typ | C30: Blackline 35 E LED | E30: =D9 -> 7700 | F30: lm

Sheet Tabelle2 (hidden)
A1: Lightline 35 Anbau opal
A2: Lightline 35 Pendel opal
A3: Lightline 35 Einbau opal
A4: Blackline 35 Anbau Abdeckung schwarz
A5: Blackline 35 Pendel Abdeckung schwarz
A6: Blackline 35 Einbau Abdeckung schwarz
